Workbook

Sheet Equipment Summary
D2: Unit Number | E2: 100
H3: This is Table 7.12 for Example 7.14
D4: CEPCI | E4: 542 | H4: Hit "Remove All Equipment" to start a new file
A6: User Added Equipment
A7: Blenders | B7: Type | C7: Volume (cubic meters) | D7: # Spares | H7: Purchased Equipment Cost | I7: Bare Module Cost | J7: Base Equipment Cost | K7: Base Bare Module Cost
A10: Centrifuges | B10: Type | C10: Diameter (meters) | D10: # Spares | H10: Purchased Equipment Cost | I10: Bare Module Cost | J10: Base Equipment Cost | K10: Base Bare Module Cost
A13: Compressors | B13: Compressor Type | C13: Power (kilowatts) | D13: # Spares | E13: MOC | H13: Purchased Equipment Cost | I13: Bare Module Cost | J13: Base Equipment Cost | K13: Base Bare Module Cost
A15: Conveyors | B15: Type | C15: Area (square meters) | H15: Purchased Equipment Cost | I15: Bare Module Cost | J15: Base Equipment Cost | K15: Base Bare Module Cost
A18: Crystallizers | B18: Type | C18: Volume (cubic meters) | H18: Purchased Equipment Cost | I18: Bare Module Cost | J18: Base Equipment Cost | K18: Base Bare Module Cost
A21: Drives | B21: Drive Type | C21: Power (kilowatts) | D21: # Spares | H21: Purchased Equipment Cost | I21: Bare Module Cost | J21: Base Equipment Cost | K21: Base Bare Module Cost
A23: Dryers | B23: Type | C23: Area (square meters) | H23: Purchased Equipment Cost | I23: Bare Module Cost | J23: Base Equipment Cost | K23: Base Bare Module Cost
A26: Dust Collectors | B26: Type | C26: Gas Flowrate (cubic meters/s) | H26: Purchased Equipment Cost | I26: Bare Module Cost | J26: Base Equipment Cost | K26: Base Bare Module Cost
A29: Evaporators | B29: Type | C29: Area (square meters) | D29: Pressure (barg) | E29: MOC | F29: Volume (cubic meters) | H29: Purchased Equipment Cost | I29: Bare Module Cost | J29: Base Equipment Cost | K29: Base Bare Module Cost
A32: Exchangers | B32: Exchanger Type | C32: Shell Pressure (barg) | D32: Tube Pressure (barg) | F32: MOC | G32: Area (square meters) | H32: Purchased Equipment Cost | I32: Bare Module Cost | J32: Base Equipment Cost | K32: Base Bare Module Cost
A33: ="E-" & unitNumber + 1 -> E-101 | B33: Floating Head | C33: =ROUND(5*preferencePressure, 2) -> 5 | D33: =ROUND(5*preferencePressure, 2) -> 5 | F33: Carbon Steel / Carbon Steel | G33: =ROUND(170*preferenceArea, 0) -> 170 | H33: =ROUND(83.0664206642066*CEPCI, -2) -> 45000 | I33: =ROUND(273.287822878229*CEPCI, -3) -> 148000 | J33: =ROUND(83.0664206642066*CEPCI, -2) -> 45000 | K33: =ROUND(273.287822878229*CEPCI, -3) -> 148000
A34: ="E-" & unitNumber + 2 -> E-102 | B34: Floating Head | C34: =ROUND(6*preferencePressure, 2) -> 6 | D34: =ROUND(18*preferencePressure, 1) -> 18 | F34: Stainless Steel / Carbon Steel | G34: =ROUND(205*preferenceArea, 0) -> 205 | H34: =ROUND(178.59778597786*CEPCI, -2) -> 96800 | I34: =ROUND(447.870848708487*CEPCI, -3) -> 243000 | J34: =ROUND(92.8837638376384*CEPCI, -2) -> 50300 | K34: =ROUND(305.586715867159*CEPCI, -3) -> 166000
A35: ="E-" & unitNumber + 3 -> E-103 | B35: Double Pipe | D35: =ROUND(5*preferencePressure, 2) -> 5 | F35: Carbon Steel / Carbon Steel | G35: =ROUND(10*preferenceArea, 1) -> 10 | H35: =ROUND(9.39483394833948*CEPCI, -1) -> 5090 | I35: =ROUND(30.909594095941*CEPCI, -2) -> 16800 | J35: =ROUND(9.39483394833948*CEPCI, -1) -> 5090 | K35: =ROUND(30.909594095941*CEPCI, -2) -> 16800
A37: Fans / Blowers | B37: Type | C37: Gas Flowrate (cubic meters/s) | D37: # Spares | E37: MOC | F37: Pressure Rise Across Fan (barg) | H37: Purchased Equipment Cost | I37: Bare Module Cost | J37: Base Equipment Cost | K37: Base Bare Module Cost
A40: Filters | B40: Type | C40: Area (square meters) | H40: Purchased Equipment Cost | I40: Bare Module Cost | J40: Base Equipment Cost | K40: Base Bare Module Cost
A43: Heater | B43: Type | C43: Heat Duty (MJ/h) | D43: Steam Superheat (°C) | E43: MOC | F43: Pressure (barg) | H43: Purchased Equipment Cost | I43: Bare Module Cost | J43: Base Equipment Cost | K43: Base Bare Module Cost
A46: Mixers | B46: Type | C46: Power (kilowatts) | D46: # Spares | H46: Purchased Equipment Cost | I46: Bare Module Cost | J46: Base Equipment Cost | K46: Base Bare Module Cost
A49: Pump | B49: Type | C49: Power (kilowatts) | D49: # Spares | F49: Discharge Pressure (barg) | H49: Purchased Equipment Cost | I49: Bare Module Cost | J49: Base Equipment Cost | K49: Base Bare Module Cost
A50: ="P-" & unitNumber + 1 -> P-101 | B50: Centrifugal | C50: =ROUND(5*preferencePower, 2) -> 5 | D50: 1 | E50: Carbon Steel | F50: =ROUND(5*preferencePressure, 2) -> 5 | H50: =ROUND(24.7933579335793*CEPCI, -2) -> 13400 | I50: =ROUND(63.7047970479705*CEPCI, -2) -> 34500 | J50: =ROUND(15.9963099630996*CEPCI, -1) -> 8670 | K50: =ROUND(51.8284132841328*CEPCI, -2) -> 28100
A52: Reactors | B52: Type | C52: Volume (cubic meters) | H52: Purchased Equipment Cost | I52: Bare Module Cost | J52: Base Equipment Cost | K52: Base Bare Module Cost
A55: Screens | B55: Type | C55: Area (square meters) | D55: # Spares | H55: Purchased Equipment Cost | I55: Bare Module Cost | J55: Base Equipment Cost | K55: Base Bare Module Cost
A58: Storage Tanks | B58: Tank Type | C58: Volume (cubic meters) | H58: Purchased Equipment Cost | I58: Bare Module Cost | J58: Base Equipment Cost | K58: Base Bare Module Cost
A61: Towers | B61: Tower Description | C61: Height (meters) | D61: Diameter (meters) | E61: Tower MOC | F61: Demister MOC | G61: Pressure (barg) | H61: Purchased Equipment Cost | I61: Bare Module Cost | J61: Base Equipment Cost | K61: Base Bare Module Cost | M61: Weld Efficiency | N61: Maximum Stress
A62: ="T-" & unitNumber + 1 -> T-101 | B62: 32 Stainless Steel Sieve Trays | C62: =ROUND(23*preferenceLength, 1) -> 23 | D62: =ROUND(2.1*preferenceLength, 2) -> 2.1 | E62: Carbon Steel | G62: =ROUND(5*preferencePressure, 2) -> 5 | H62: =ROUND(535.509225092251*CEPCI, -3) -> 290000 | I62: =ROUND(1013.40590405904*CEPCI, -3) -> 549000 | J62: =ROUND(318.664206642066*CEPCI, -3) -> 173000 | K62: =ROUND(741.819188191882*CEPCI, -3) -> 402000 | M62: 0.8999999762 | N62: 944
A64: Turbines | B64: Turbine Type | C64: Power (kilowatts) | D64: # Spares | E64: MOC | H64: Purchased Equipment Cost | I64: Bare Module Cost | J64: Base Equipment Cost | K64: Base Bare Module Cost
A67: Vessels | B67: Orientation | C67: Length/Height (meters) | D67: Diameter (meters) | E67: MOC | F67: Demister MOC | G67: Pressure (barg) | H67: Purchased Equipment Cost | I67: Bare Module Cost | J67: Base Equipment Cost | K67: Base Bare Module Cost | N67: Maximum Stress
A68: ="V-" & unitNumber + 1 -> V-101 | B68: Horizontal | C68: =ROUND(6*preferenceLength, 2) -> 6 | D68: =ROUND(1.8*preferenceLength, 2) -> 1.8 | E68: Carbon Steel | G68: =ROUND(5*preferencePressure, 2) -> 5 | H68: =ROUND(45.6789667896679*CEPCI, -2) -> 24800 | I68: =ROUND(120.083025830258*CEPCI, -2) -> 65100 | J68: =ROUND(33.9944649446494*CEPCI, -2) -> 18400 | K68: =ROUND(102.322878228782*CEPCI, -2) -> 55500 | M68: 0.8999999762 | N68: 944
A71: User Added Equipment | B71: Description | C71: BMF0 | D71: Actual BMF | H71: Purchased Equipment Cost | I71: Bare Module Cost | J71: Base Equipment Cost | K71: Base Bare Module Cost
N72: 0
G73: Totals | H73: =SUM(H5:H71) -> 475090 | I73: =SUM(I5:I71) -> 1056400 | J73: =SUM(J5:J71) -> 300460 | K73: =SUM(K5:K71) -> 816400
G75: Total Module Cost | H75: =ROUND(TBMC_Actual*1.18,-4) -> 1250000
G76: Total Grass Roots Cost | H76: =Total_Module_Cost+ROUND(0.5*TBMC_Base,-4) -> 1660000
G77: Total Equipment Cost | H77: =TCP_Actual -> 475090 | J77: `
G79: Lang Factor | H79: 4.74
G80: Lang Factor Cost | H80: =ROUND(Lang_Factor*TCP_Actual,-5) -> 2300000

Sheet Utilities Summary
B5: =" " -> 
B6: Name | C6: Total Module Cost | E6: Grass Roots Cost | G6: Utility Used | H6: Efficiency | I6: Actual Usage | K6: Annual Utility Cost
B7: =" " -> 
B8: ="E-" & unitNumber + 1 -> E-101 | C8: =ROUND(totalModuleFactor*148122, 3) -> 174783.96 | E8: =ROUND((totalModuleFactor*148122+ grassRootsFactor*148122), -3) -> 249000 | G8: Unspecified
B9: ="E-" & unitNumber + 2 -> E-102 | C9: =ROUND(totalModuleFactor*242746, -3) -> 286000 | E9: =ROUND((totalModuleFactor*242746+ grassRootsFactor*165628), -3) -> 369000 | G9: Unspecified
B10: ="E-" & unitNumber + 3 -> E-103 | C10: =ROUND(totalModuleFactor*16753, -3) -> 20000 | E10: =ROUND((totalModuleFactor*16753+ grassRootsFactor*16753), -2) -> 28100 | G10: Unspecified
B11: ="P-" & unitNumber + 1 -> P-101 | C11: =ROUND(34528*totalModuleFactor, -2) -> 40700 | E11: =ROUND((totalModuleFactor*34528+ grassRootsFactor*28091), -2) -> 54800 | G11: Electricity | H11: =pumpEfficiency -> 0.86 | I11: =ROUND(5*preferencePower/H11,2) & " " &'User Options'!$F$5 -> 5.81 kilowatts | K11: =ROUND(0.018*costElectricity*hoursPerYear/H11,-1) -> 3260
B12: T-101 | C12: =ROUND(totalModuleFactor*549266, -3) -> 648000 | E12: =ROUND((totalModuleFactor*549266+grassRootsFactor*402067), -4) -> 850000 | G12: NA
B13: V-101 | C13: =ROUND(totalModuleFactor*65085, -3) -> 77000 | E13: =ROUND((totalModuleFactor*65085+ grassRootsFactor*55459), -3) -> 105000 | G13: NA
B16: Totals | C16: =ROUND(SUM($C$6:$C$14),-4) -> 1250000 | E16: =ROUND(SUM($E$6:$E$14),-4) -> 1660000 | K16: =ROUND(SUM($K$6:$K$14),-1) -> 3260
C22: COUNTIF(costSummary:totals,"B-*")
C23: =COUNTIF(costSummary:totals,"Ct*") -> 0
B24: =COUNTIF(costSummary:totals,"C-*") -> 0
C25: =COUNTIF(costSummary:totals,"Cv*") -> 0
C26: =COUNTIF(costSummary:totals,"Cr*") -> 0
B27: =COUNTIF(costSummary:totals,"D-*") -> 0
C28: =COUNTIF(costSummary:totals,"Dy*") -> 0
C29: =COUNTIF(costSummary:totals,"Dc*") -> 0
C30: COUNTIF(costSummary:totals,"K-*")
B31: =COUNTIF(costSummary:totals,"F-*") -> 0
C32: =COUNTIF(costSummary:totals,"Fr*") -> 0
B33: =COUNTIF(costSummary:totals,"H-*") -> 0
B34: =COUNTIF(costSummary:totals,"E-*") -> 3
C35: COUNTIF(costSummary:totals,"M-*")
B36: COUNTIF(costSummary:totals,"P-*")
B37: =COUNTIF(costSummary:totals,"R-*") -> 0
C38: =COUNTIF(costSummary:totals,"S-*") -> 0
B39: =COUNTIF(costSummary:totals,"Tk*") -> 0
B40: =COUNTIF(costSummary:totals,"T-*") -> 1
B41: =COUNTIF(costSummary:totals,"J-*") -> 0
B42: COUNTIF(costSummary:totals,"V-*")
B43: =COUNTIF(costSummary:totals,"Z-*") -> 0
B44: =SUM(B22:B43) -> 4 | C44: =SUM(C22:C43) -> 0

Sheet COM Summary
B5: Material Name | C5: Classification | D5: Price ($/kg) | E5: Flowrate (kg/h) | F5: Annual Cost
B6: Propylene | C6: Raw Material | D6: =0.32/preferenceCost -> 0.32 | E6: =1234*preferenceFlowrate -> 1234 | F6: =D6 * preferenceCost * E6 / preferenceFlowrate * hoursPerYear -> 3286191.36
B7: Product A | C7: Product | D7: =-100/preferenceCost -> -100 | E7: =600*preferenceFlowrate -> 600 | F7: =D7 * preferenceCost * E7 / preferenceFlowrate * hoursPerYear -> -499320000
F10: =SUMIF(C5:endClassification, "Product",F5:endMaterial) -> -499320000
F11: =SUMIF(C5:endClassification, "Raw Material",F5:endMaterial) -> 3286191.36
F12: =SUMIF(C5:endClassification, "Hazardous Waste",F5:endMaterial) -> 0
F13: =SUMIF(C5:endClassification, "Non-Hazardous Waste",F5:endMaterial) -> 0
B14: Economic Options | F14: =F13+F12 -> 0
B15: Cost of Land | C15: 10000000
B16: Taxation Rate | C16: 0.45
B17: Annual Interest Rate | C17: 0.1000000015
B18: Salvage Value | C18: =FCIL/10 -> 15000000 | D18: tenPercent
B19: Working Capital | C19: 30000000 | D19: custom
B20: FCIL | C20: 150000000 | D20: custom
B21: Total Module Factor | C21: 1.18
B22: Grass Roots Factor | C22: 0.5
B24: Economic Information Calculated From Given Information
B25: Revenue From Sales | C25: =-sumProduct -> 499320000 | D25: material
B26: CRM (Raw Materials Costs) | C26: =sumRawMaterial -> 3286191.36 | D26: material
B27: CUT (Cost of Utilities) | C27: 500 | D27: custom
B28: CWT (Waste Treatment Costs) | C28: 0 | D28: custom
B29: COL (Cost of Operating Labor) | C29: 0 | D29: custom
B31: Factors Used in Calculation of Cost of Manufacturing (COMd)
B32: ="Comd = " & C33 & "*FCIL + " &C34&"*COL + " & C35 & "*(CUT + CWT + CRM)" -> Comd = 0.18*FCIL + 2.76*COL + 1.23*(CUT + CWT + CRM)
B33: Multiplying factor for FCIL | C33: 0.18
B34: Multiplying factor for COL | C34: 2.76
B35: Facotrs for CUT, CWT, and CRM | C35: 1.23
B37: COMd | C37: =C33*FCIL+C34*costOperatingLabor+C35*(costUtilities+costWasteTreatment+costRawMaterials) -> 31042630.37
B39: Factors Used in Calculation of Working Capital
B40: Working Capital = A*CRM + B*FCIL + C*COL
B41: A | C41: 0.1
B42: B | C42: 0.1
B43: C | C43: 0.1
B45: Project Life (Years after Startup) | C45: 10
B47: Construction period | C47: 2
B49: Distribution of Fixed Capital Investment (must sum to one)
B50: End of year One | C50: =0.6 -> 0.6
B51: End of year Two | C51: =0.4 -> 0.4
B52: End of year Three
B53: End of year Four
B54: End of year Five

Sheet Cash Flow Analysis
B36: Discounted Profitibility Criterion | G36: Non-Discounted Profitibility Criteria
D38: Net Present Value (millions) | E38: =$K$63 -> 1200.201745 | H38: Cumulative Cash Position (millions) | I38: =SUM($I$48:$I$63) -> 2501.275533
D40: Discounted Cash Flow Rate of Return | E40: 0.1210438442 | H40: Rate of Return on Investment | I40: =($L$63- costLand/10^6 - workingCapital/10^6 -$L$52)/projectLife/(FCIL/10^6) - 1/projectLife -> 1.667517022
D42: Discounted Payback Period (years) | E42: 5.939099119 | H42: Payback Period (years) | I42: 3.851672434
B47: Year | C47: Investment | D47: dk | E47: FCIL-Sdk | F47: R | G47: COMd | H47: (R-COMd-dk)*(1-t)+dk | I47: Cash Flow (Non-discounted) | J47: Cash Flow (discounted) | K47: Cumulative Cash Flow (discounted) | L47: Cumulative Cash Flow (Non-discounted)
B48: 0 | C48: =0 -> 0 | E48: =FCIL/10^6 -> 150 | I48: =0 -> 0 | J48: =0 -> 0 | K48: =0 -> 0 | L48: =0 -> 0
B49: 0 | C49: =costLand/10^6 -> 10 | E49: =FCIL/10^6 -> 150 | I49: =-$C$49 -> -10 | J49: =-$C$49 -> -10 | K49: =-$C$49 -> -10 | L49: =-$C$49 -> -10
B50: 1 | C50: =FCIL/10^6*'COM Summary'!$C$50 -> 90 | E50: =FCIL/10^6 -> 150 | I50: =-$C$50 -> -90 | J50: =$I$50/((1 + iRate) ^1) -> -81.81818171 | K50: =$J$50+$K$49 -> -91.81818171 | L50: =$I$50+$L$49 -> -100
B51: 2 | C51: =(FCIL/10^6*'COM Summary'!$C$51) -> 60 | E51: =FCIL/10^6 -> 150 | I51: =-$C$51 -> -60 | J51: =$I$51/((1 + iRate) ^2) -> -49.58677673 | K51: =$J$51+$K$50 -> -141.4049584 | L51: =$I$51+$L$50 -> -160
B52: 2 | C52: =workingCapital/10^6 -> 30 | E52: =FCIL/10^6 -> 150 | I52: =-$C$52 -> -30 | J52: =$I$52/((1 + iRate) ^2) -> -24.79338836 | K52: =$J$52+$K$51 -> -166.1983468 | L52: =$I$52+$L$51 -> -190
B53: 3 | D53: =FCIL*0.2/10^6 -> 30 | E53: =FCIL/10^6-SUM($D$53:$D$53) -> 120 | F53: =revenue/10^6 -> 499.32 | G53: =COMd/10^6 -> 31.04263037 | H53: =(revenue/10^6 - COMd/10^6 - FCIL/10^6*0.2)*(1 - taxRate) + FCIL/10^6*0.2 -> 271.0525533 | I53: =$H$53 -> 271.0525533 | J53: =$I$53/((iRate + 1)^3) -> 203.6457943 | K53: =$J$53+$K$52 -> 37.44744749 | L53: =$I$53+$L$52 -> 81.05255329
B54: 4 | D54: =FCIL*0.32/10^6 -> 48 | E54: =FCIL/10^6-SUM($D$53:$D$54) -> 72 | F54: 499.32 | G54: 31.04263037 | H54: =(revenue/10^6 - COMd/10^6 - FCIL/10^6*0.32)*(1 - taxRate) + FCIL/10^6*0.32 -> 279.1525533 | I54: =$H$54 -> 279.1525533 | J54: =$I$54/((iRate + 1)^4) -> 190.664949 | K54: =$J$54+$K$53 -> 228.1123965 | L54: =$I$54+$L$53 -> 360.2051066
B55: 5 | D55: =FCIL*0.192/10^6 -> 28.8 | E55: =FCIL/10^6-SUM($D$53:$D$55) -> 43.2 | F55: 499.32 | G55: 31.04263037 | H55: =(revenue/10^6 - COMd/10^6 - FCIL/10^6*0.192)*(1 - taxRate) + FCIL/10^6*0.192 -> 270.5125533 | I55: =$H$55 -> 270.5125533 | J55: =$I$55/((iRate + 1)^5) -> 167.9670114 | K55: =$J$55+$K$54 -> 396.0794078 | L55: =$I$55+$L$54 -> 630.7176599
B56: 6 | D56: =FCIL*0.115/10^6 -> 17.25 | E56: =FCIL/10^6-SUM($D$53:$D$56) -> 25.95 | F56: 499.32 | G56: 31.04263037 | H56: =(revenue/10^6 - COMd/10^6 - FCIL/10^6*0.115)*(1 - taxRate) + FCIL/10^6*0.115 -> 265.3150533 | I56: =$H$56 -> 265.3150533 | J56: =$I$56/((iRate + 1)^6) -> 149.7634296 | K56: =$J$56+$K$55 -> 545.8428374 | L56: =$I$56+$L$55 -> 896.0327132
B57: 7 | D57: =FCIL*0.115/10^6 -> 17.25 | E57: =FCIL/10^6-SUM($D$53:$D$57) -> 8.7 | F57: 499.32 | G57: 31.04263037 | H57: =(revenue/10^6 - COMd/10^6 - FCIL/10^6*0.115)*(1 - taxRate) + FCIL/10^6*0.115 -> 265.3150533 | I57: =$H$57 -> 265.3150533 | J57: =$I$57/((iRate + 1)^7) -> 136.1485722 | K57: =$J$57+$K$56 -> 681.9914096 | L57: =$I$57+$L$56 -> 1161.347766
B58: 8 | D58: =FCIL*0.058/10^6 -> 8.7 | E58: - | F58: 499.32 | G58: 31.04263037 | H58: =(revenue/10^6 - COMd/10^6 - FCIL/10^6*0.058)*(1 - taxRate) + FCIL/10^6*0.058 -> 261.4675533 | I58: =$H$58 -> 261.4675533 | J58: =$I$58/((iRate + 1)^8) -> 121.976542 | K58: =$J$58+$K$57 -> 803.9679516 | L58: =$I$58+$L$57 -> 1422.81532
B59: 9 | E59: - | F59: 499.32 | G59: 31.04263037 | H59: =(revenue/10^6 - COMd/10^6 - FCIL/10^6*0)*(1 - taxRate) + FCIL/10^6*0 -> 257.5525533 | I59: =$H$59 -> 257.5525533 | J59: =$I$59/((iRate + 1)^9) -> 109.2274231 | K59: =$J$59+$K$58 -> 913.1953747 | L59: =$I$59+$L$58 -> 1680.367873
B60: 10 | E60: - | F60: 499.32 | G60: 31.04263037 | H60: =(revenue/10^6 - COMd/10^6 - FCIL/10^6*0)*(1 - taxRate) + FCIL/10^6*0 -> 257.5525533 | I60: =$H$60 -> 257.5525533 | J60: =$I$60/((iRate + 1)^10) -> 99.29765725 | K60: =$J$60+$K$59 -> 1012.493032 | L60: =$I$60+$L$59 -> 1937.920426
B61: 11 | E61: - | F61: 499.32 | G61: 31.04263037 | H61: =(revenue/10^6 - COMd/10^6 - FCIL/10^6*0)*(1 - taxRate) + FCIL/10^6*0 -> 257.5525533 | I61: =$H$61 -> 257.5525533 | J61: =$I$61/((iRate + 1)^11) -> 90.27059738 | K61: =$J$61+$K$60 -> 1102.763629 | L61: =$I$61+$L$60 -> 2195.47298
B62: 12 | E62: - | F62: 499.32 | G62: 31.04263037 | H62: =(revenue/10^6+salvageValue/10^6 - COMd/10^6 - FCIL/10^6*0)*(1 - taxRate) + FCIL/10^6*0 -> 265.8025533 | I62: =$H$62 -> 265.8025533 | J62: =$I$62/((iRate + 1)^12) -> 84.69288353 | K62: =$J$62+$K$61 -> 1187.456513 | L62: =$I$62+$L$61 -> 2461.275533
B63: 12 | I63: =workingCapital/10^6 + costLand/10^6 -> 40 | J63: =$I$63/((iRate + 1)^12) -> 12.7452325 | K63: =$J$63+$K$62 -> 1200.201745 | L63: =$I$63+$L$62 -> 2501.275533

Sheet Monte Carlo Simulation
B4: Probable Variation of Key Parameters over Plant Life
D6: Lower Limit | E6: Upper Limit | G6: Base Value
C7: FCIL | D7: -0.2 | E7: 0.3 | G7: =FCIL -> 150000000
C8: Price of Product | D8: -0.2 | E8: 0.05 | G8: =revenue -> 499320000
C9: Working Capital | D9: 0 | E9: 0 | G9: =workingCapital -> 30000000
C10: Income Tax Rate* | D10: 0 | E10: 0 | G10: =taxRate -> 0.45
C11: Interest Rate* | D11: 0 | E11: 0 | G11: =iRate -> 0.1000000015
C12: Raw Material Price | D12: -0.1 | E12: 0.1 | G12: =costRawMaterials -> 3286191.36
C13: Salvage Value | D13: 0 | E13: 0 | G13: =salvageValue -> 15000000
C16: * Please note that variations for percentages are a percent of a percent.
C17: For example, a 10% variance on a 12% interst rate would imply a 1.2% uncertainty
B27: Net Present Value Data
B29: Low NPV | C29: 18428.54297
B30: High NPV | C30: 24130.95508
B32: Bins | C32: Upper Value | D32: # points/bin | E32: Cumulative | G32: Cumulative Fraction
B33: 0 | C33: =C29 -> 18428.54297 | D33: 0 | E33: 0 | G33: =E33/$E$43 -> 0
B34: 1 | C34: 18998.78516 | D34: 13 | E34: =D34 -> 13 | G34: =E34/$E$43 -> 0.013
B35: =B34+1 -> 2 | C35: 19569.02539 | D35: 34 | E35: =D35+E34 -> 47 | G35: 0.047
B36: =B35+1 -> 3 | C36: 20139.26562 | D36: 74 | E36: 121 | G36: 0.121
B37: 4 | C37: 20709.50781 | D37: 96 | E37: 217 | G37: 0.217
B38: 5 | C38: 21279.75 | D38: 110 | E38: 327 | G38: 0.327
B39: 6 | C39: 21849.99023 | D39: 121 | E39: 448 | G39: 0.448
B40: 7 | C40: 22420.23047 | D40: 165 | E40: 613 | G40: 0.613
B41: 8 | C41: 22990.47266 | D41: 188 | E41: 801 | G41: 0.801
B42: 9 | C42: 23560.71484 | D42: 142 | E42: 943 | G42: 0.943
B43: 10 | C43: 24130.95508 | D43: 57 | E43: 1000 | G43: 1
B49: Discounted Cash Flow Rate of Return Data
B52: Low DCFROR | C52: NA
B53: High DCFROR | C53: NA
B55: Bins | C55: Upper | D55: #/bin | E55: Cumulative | G55: Cumulative Fraction
B56: 0 | C56: =C52 -> NA | D56: 0 | E56: 0 | G56: =E56/$E$66 -> 
B57: 1 | C57: 0.06348762661 | E57: =D57 -> 0 | G57: =E57/$E$66 -> 
B58: =B57+1 -> 2 | C58: 0.07471580803 | E58: =D58+E57 -> 0
B59: =B58+1 -> 3 | C59: 0.08594398201 | E59: 0
B60: 4 | C60: 0.09717216343 | E60: 0
B61: 5 | C61: 0.1084003448 | E61: 0
B62: 6 | C62: 0.1196285263 | E62: 0
B63: 7 | C63: 0.1308567077 | E63: 0
B64: 8 | C64: 0.1420848817 | E64: 0
B65: 9 | C65: 0.1533130705 | E65: 0
B66: 10 | C66: 0.1645412445 | E66: 0
B71: Discounted Payback Period Data
B74: Low DPBP | C74: 0.03487210348
B75: High DPBP | C75: 0.06498229504
B77: Bins | C77: Upper | D77: #/bin | E77: Cumulative | G77: Cumulative Fraction
B78: 0 | C78: =C74 -> 0.03487210348 | D78: 0 | E78: 0 | G78: =E78/$E$88 -> 0
B79: 1 | C79: 0.03788312152 | D79: 22 | E79: =D79 -> 22 | G79: =E79/$E$88 -> 0.022
B80: =B79+1 -> 2 | C80: 0.04089414328 | D80: 73 | E80: =D80+E79 -> 95 | G80: =E80/$E$88 -> 0.095
B81: =B80+1 -> 3 | C81: 0.04390516132 | D81: 173 | E81: 268 | G81: 0.268
B82: 4 | C82: 0.04691617936 | D82: 227 | E82: 495 | G82: 0.495
B83: 5 | C83: 0.0499271974 | D83: 187 | E83: 682 | G83: 0.682
B84: 6 | C84: 0.05293821916 | D84: 125 | E84: 807 | G84: 0.807
B85: 7 | C85: 0.0559492372 | D85: 104 | E85: 911 | G85: 0.911
B86: 8 | C86: 0.05896025524 | D86: 53 | E86: 964 | G86: 0.964
B87: 9 | C87: 0.061971277 | D87: 29 | E87: 993 | G87: 0.993
B88: 10 | C88: 0.06498229504 | D88: 7 | E88: 1000 | G88: 1
B93: Cumulative Cash Position Data
B96: Low CCP | C96: 36413.40625
B97: High CCP | C97: 47636.67969
B99: Bins | C99: Upper Value | D99: # points/bin | E99: Cumulativive | G99: Cumulative Fraction
B100: 0 | C100: =C96 -> 36413.40625 | D100: 0 | E100: 0 | G100: =E100/$E$110 -> 0
B101: 1 | C101: 37535.73438 | D101: 13 | E101: =D101 -> 13 | G101: =E101/$E$110 -> 0.013
B102: =B101+1 -> 2 | C102: 38658.0625 | D102: 33 | E102: =D102+E101 -> 46 | G102: 0.046
B103: =B102+1 -> 3 | C103: 39780.38672 | D103: 75 | E103: 121 | G103: 0.121
B104: 4 | C104: 40902.71484 | D104: 95 | E104: 216 | G104: 0.216
B105: 5 | C105: 42025.04297 | D105: 108 | E105: 324 | G105: 0.324
B106: 6 | C106: 43147.37109 | D106: 122 | E106: 446 | G106: 0.446
B107: 7 | C107: 44269.69922 | D107: 167 | E107: 613 | G107: 0.613
B108: 8 | C108: 45392.02344 | D108: 184 | E108: 797 | G108: 0.797
B109: 9 | C109: 46514.35156 | D109: 146 | E109: 943 | G109: 0.943
B110: 10 | C110: 47636.67969 | D110: 57 | E110: 1000 | G110: 1
B115: Rate of Return on Investment Data
B118: Low ROROI | C118: 20.28205109
B119: High ROROI | C119: 37.96988678
B121: Bins | C121: Upper Value | D121: # points/bin | E121: Cumulative | G121: Cumulative Fraction
B122: 0 | C122: =C118 -> 20.28205109 | D122: 0 | E122: 0 | G122: =E122/$E$132 -> 0
B123: 1 | C123: 22.05083466 | D123: 25 | E123: =D123 -> 25 | G123: =E123/$E$132 -> 0.025
B124: =B123+1 -> 2 | C124: 23.81961823 | D124: 81 | E124: =D124+E123 -> 106 | G124: 0.106
B125: =B124+1 -> 3 | C125: 25.58840179 | D125: 139 | E125: 245 | G125: 0.245
B126: 4 | C126: 27.35718536 | D126: 162 | E126: 407 | G126: 0.407
B127: 5 | C127: 29.12596893 | D127: 205 | E127: 612 | G127: 0.612
B128: 6 | C128: 30.8947525 | D128: 193 | E128: 805 | G128: 0.805
B129: 7 | C129: 32.66353607 | D129: 114 | E129: 919 | G129: 0.919
B130: 8 | C130: 34.43231964 | D130: 48 | E130: 967 | G130: 0.967
B131: 9 | C131: 36.20110321 | D131: 21 | E131: 988 | G131: 0.988
B132: 10 | C132: 37.96988678 | D132: 12 | E132: 1000 | G132: 1
B137: Payback Period Data
B140: Low DPBP | C140: 0.03128604591
B141: High DPBP | C141: 0.04088943079
B143: Bins | C143: Upper | D143: #/bin | E143: Cumulative | G143: Cumulative Fraction
B144: 0 | C144: =C140 -> 0.03128604591 | D144: 0 | E144: 0 | G144: =E144/$E$154 -> 0
B145: 1 | C145: 0.03224638477 | D145: 85 | E145: =D145 -> 85 | G145: =E145/$E$154 -> 0.085
B146: =B145+1 -> 2 | C146: 0.03320672363 | D146: 206 | E146: =D146+E145 -> 291 | G146: 0.291
B147: =B146+1 -> 3 | C147: 0.03416706249 | D147: 202 | E147: 493 | G147: 0.493
B148: 4 | C148: 0.03512740135 | D148: 144 | E148: 637 | G148: 0.637
B149: 5 | C149: 0.03608773649 | D149: 118 | E149: 755 | G149: 0.755
B150: 6 | C150: 0.03704807535 | D150: 91 | E150: 846 | G150: 0.846
B151: 7 | C151: 0.03800841421 | D151: 79 | E151: 925 | G151: 0.925
B152: 8 | C152: 0.03896875307 | D152: 43 | E152: 968 | G152: 0.968
B153: 9 | C153: 0.03992909193 | D153: 24 | E153: 992 | G153: 0.992
B154: 10 | C154: 0.04088943079 | D154: 8 | E154: 1000 | G154: 1

Sheet User Options
B2: Hours per Operting Year | C2: 8322
C4: Cost ($/GJ) | F4: Power Preference
B5: Common Utilities | F5: kilowatts | G5: 1 | H5: kW / kW
B6: Electricity (110V - 440V) | C6: 18.72
B7: Cooling Water (30°C to 45°C) | C7: 0.378 | F7: Pressure Preference
B8: Refrigerated Water (15°C to 25°C) | C8: 4.77 | F8: barg | G8: 1 | H8: barg / barg
B10: Steam from Boilers | F10: Heat Duty Preference
B11: Low Pressure (5 barg, 160°C) | C11: 2.03 | F11: MJ/h | G11: 3.6 | H11: (MJ/h) / kW
B12: Medium Pressure (10 barg, 184°C) | C12: 2.78
B13: High Pressure (41 barg, 254°C) | C13: 5.66 | F13: Length Preference
F14: meters | G14: 1 | H14: m / m
B15: Fuels
B16: Fuel Oil (no. 2) | C16: 10.26 | F16: Area Preference
B17: Natural Gas | C17: 3.16 | F17: square meters | G17: 1 | H17: m^2 / m^2
B18: Coal (FOB mine mouth) | C18: 2.04
F19: Volume Preference
B20: Thermal Systems | F20: cubic meters | G20: 1 | H20: m^3/m^3
B21: Moderately High (up to 330°C) | C21: 3.95
B22: High (up to 400°C) | C22: 3.95 | F22: Gas Flow Preference
B23: Very High (up to 600°C) | C23: 3.95 | F23: cubic meters/s | G23: 1 | H23: m^3 / m^3
B25: Refrigeration | F25: Cost Preference
B26: Moderately Low (5°C) | C26: 4.77 | F26: $/kg | G26: 1 | H26: kg / kg
B27: Low (-20°C) | C27: 8.49
B28: Very low (-50°C) | C28: 14.12 | F28: Flowrate Preference
F29: kg/h | G29: 1 | H29: kg / kg
C30: Cost ($/tonne)
B31: Waste Disposal (solid and liquid) | F31: Energy Price Preference
B32: Non-Hazardous | C32: 36 | F32: $/Gigajoule | G32: 1 | H32: GJ / GJ
B33: Hazardous | C33: 200
B35: Cost of Steam used in Steam Drives
C36: Cost ($/GJ)
B37: Steam used for steam-powered drives | C37: 5.66
B39: Equipment Effeciencies
B41: Pump Efficiency | C41: 0.86
B42: Drive Efficiency | C42: 0.9
B43: Fan Efficiency | C43: 0.7
B44: Furnace Efficiency | C44: 0.9
B45: Turbine Efficiency | C45: 0.65
B47: Process Equipment
C49: Operators per shift per equipment
B51: Cost of Labor (per operator/year) | C51: 66910
B53: Miscellaneous Numebrs
B55: Solids Handling Coefficient | C55: 1

Sheet Equipment Cost Data
B2: Blender Data
B3: Blender Type | C3: K1 | D3: K2 | E3: K3 | F3: Vmin(m3) | G3: Vmax(m3) | H3: FBM
B4: Kneader | C4: 5.0141 | D4: 0.5867 | E4: 0.3224 | F4: 0.14 | G4: 3 | H4: 1.12
B5: Ribbon | C5: 4.1366 | D5: 0.5072 | E5: 0.007 | F5: 0.7 | G5: 11 | H5: 1.12
B6: Rotary | C6: 4.1366 | D6: 0.5072 | E6: 0.007 | F6: 0.7 | G6: 11 | H6: 1.12
B9: Centrifuge Data
B10: Centrifuge Type | C10: K1 | D10: K2 | E10: K3 | F10: Dmin(m) | G10: Dmax(m) | H10: FBM
B11: Auto Batch Seperator | C11: 4.7681 | D11: 0.974 | E11: 0.024 | F11: 0.5 | G11: 1.7 | H11: 1.57
B12: Centrifugal Seperator | C12: 4.3612 | D12: 0.8764 | E12: -0.0049 | F12: 0.5 | G12: 1 | H12: 1.57
B13: Oscillating Screen | C13: 4.86 | D13: 0.334 | E13: 0.1063 | F13: 0.5 | G13: 1.1 | H13: 1.57
B14: Solid Bowl w/o Motor | C14: 4.9697 | D14: 1.1689 | E14: 0.0038 | F14: 0.3 | G14: 2 | H14: 1.27
B17: Compressor Data (without electric motors)
B18: Compressor Type | C18: K1 | D18: K2 | E18: K3 | F18: FBMCS | G18: FBMSS | H18: FBMNi | I18: Wmin(kW) | J18: Wmax(kW)
B19: Centrifugal | C19: 2.2891 | D19: 1.3604 | E19: -0.1027 | F19: 2.74 | G19: 5.75 | H19: 11.45 | I19: 450 | J19: 3000
B20: Axial | C20: 2.2891 | D20: 1.3604 | E20: -0.1027 | F20: 3.83 | G20: 8.04 | H20: 15.92 | I20: 450 | J20: 3000
B21: Rotary | C21: 5.0355 | D21: -1.8002 | E21: 0.8253 | F21: 2.41 | G21: 5.04 | H21: 9.85 | I21: 18 | J21: 950
B22: Reciprocating | C22: 2.2891 | D22: 1.3604 | E22: -0.1027 | F22: 3.37 | G22: 7 | H22: 13.88 | I22: 450 | J22: 3000
B25: Conveyor Data
B26: Conveyor Type | C26: K1 | D26: K2 | E26: K3 | F26: Amin(m2) | G26: Amax(m2) | H26: FBM
B27: Apron | C27: 3.9255 | D27: 0.5039 | E27: 0.1506 | F27: 1 | G27: 15 | H27: 2
B28: Belt | C28: 4.0637 | D28: 0.2584 | E28: 0.155 | F28: 0.5 | G28: 325 | H28: 1.25
B29: Pneumatic | C29: 4.6616 | D29: 0.3205 | E29: 0.0638 | F29: 0.75 | G29: 65 | H29: 1.25
B30: Screw | C30: 3.6062 | D30: 0.2659 | E30: 0.1982 | F30: 0.5 | G30: 30 | H30: 1.1
B33: Crystallizer Data
B34: Crystallizer Type | C34: K1 | D34: K2 | E34: K3 | F34: Vmin(m3) | G34: Vmax(m3) | H34: FBM
B35: Batch | C35: 4.5097 | D35: 0.1731 | E35: 0.1344 | F35: 1.5 | G35: 30 | H35: 1.6
B38: Drive Data
B39: Electric Drives | C39: K1 | D39: K2 | E39: K3 | F39: FBM | G39: Wmin(kW) | H39: Wmax(kW)
B40: Explosion Proof | C40: 2.4604 | D40: 1.4191 | E40: -0.1798 | F40: 1.5 | G40: 75 | H40: 2600
B41: Totally Enclosed | C41: 1.956 | D41: 1.7142 | E41: -0.2282 | F41: 1.5 | G41: 75 | H41: 2600
B42: Open/Drip Proof | C42: 2.9508 | D42: 1.0688 | E42: -0.1315 | F42: 1.5 | G42: 75 | H42: 2600
B44: Non-Electric Drives | C44: K1 | D44: K2 | E44: K3 | F44: FBM | G44: Wmin(kW) | H44: Wmax(kW)
B45: Gas Turbine | C45: -21.7702 | D45: 13.2175 | E45: -1.5279 | F45: 3.5 | G45: 7500 | H45: 23000
B46: Steam Turbine | C46: 2.6259 | D46: 1.4398 | E46: -0.1776 | F46: 3.5 | G46: 70 | H46: 7500
B47: Internal Combustion | C47: 2.7635 | D47: 0.8574 | E47: -0.0098 | F47: 2 | G47: 10 | H47: 10000
B50: Dryer Data
B51: Dryer Type | C51: K1 | D51: K2 | E51: K3 | F51: Amin(m2) | G51: Amax(m2) | H51: FBM
B52: Drum | C52: 4.5472 | D52: =0.2731 -> 0.2731 | E52: 0.134 | F52: 0.5 | G52: 50 | H52: 1.6
B53: Rotary, Gas Fired | C53: 3.5645 | D53: 1.1118 | E53: -0.0777 | F53: 5 | G53: 100 | H53: 1.25
B54: Tray | C54: 3.6951 | D54: 0.5442 | E54: -0.1248 | F54: 1.8 | G54: 20 | H54: 1.25
B57: Dust Collectors Data
B58: Collector Type | C58: K1 | D58: K2 | E58: K3 | F58: Vmin(m3/s) | G58: Vmax(m3/s) | H58: FBM
B59: Baghouse | C59: 4.5007 | D59: 0.4182 | E59: 0.0813 | F59: 0.08 | G59: 350 | H59: 2.86
B60: Cyclone Scrubbers | C60: 3.6298 | D60: =1-0.4991 -> 0.5009 | E60: 0.0411 | F60: 0.06 | G60: 200 | H60: 2.86
B61: ( Centrifugal, Gravity
B62: Spray, Impingement,
B63: and Wet Dynamic)
B64: Electrostatic Precipitator | C64: 3.6298 | D64: 0.5009 | E64: 0.0411 | F64: 0.06 | G64: 200 | H64: 2.86
B65: Venturi | C65: 3.6298 | D65: 0.5009 | E65: 0.0411 | F65: 0.06 | G65: 200 | H65: 2.86
B68: Fan Data (include electric motors)
B69: Fan Type | C69: K1 | D69: K2 | E69: K3 | F69: FBMCS | G69: FBMfiberglass | H69: FBMSS | I69: FBMNi | J69: Threshold | K69: C1 | L69: C2 | M69: C3 | N69: Vmin(m3/s) | O69: Vmax(m3/s) | P69: Pmax(barg)
B70: Centrifugal Radial Fan | C70: 3.5391 | D70: -0.3533 | E70: 0.4477 | F70: 2.74 | G70: 4.97 | H70: 5.75 | I70: 11.45 | J70: 0.01 | K70: 0 | L70: 0.20899 | M70: -0.0328 | N70: 1 | O70: 100 | P70: 0.16
B71: Centrifugal Backward curved fan | C71: 3.3471 | D71: -0.0734 | E71: 0.309 | F71: 2.74 | G71: 4.97 | H71: 5.75 | I71: 11.45 | J71: 0.01 | K71: 0 | L71: 0.20899 | M71: -0.0328 | N71: 1 | O71: 100 | P71: 0.16
B72: Axial Tube Fan | C72: 3.0414 | D72: -0.3375 | E72: 0.4722 | F72: 2.74 | G72: 4.97 | H72: 5.75 | I72: 11.45 | J72: 0.04 | K72: 0 | L72: 0.20899 | M72: -0.0328 | N72: 1 | O72: 100 | P72: 0.16
B73: Axial Vane Fan | C73: 3.1761 | D73: -0.1373 | E73: 0.3414 | F73: 2.74 | G73: 4.97 | H73: 5.75 | I73: 11.45 | J73: 0.04 | K73: 0 | L73: 0.20899 | M73: -0.0328 | N73: 1 | O73: 100 | P73: 0.16
B76: Filter Data
B77: Filter Type | C77: K1 | D77: K2 | E77: K3 | F77: Amin(m2) | G77: Amax(m2) | H77: FBM
B78: Bent | C78: 5.1055 | D78: 0.4999 | E78: 0.0001 | F78: 0.9 | G78: 115 | H78: 1.65
B79: Cartridge | C79: 3.2107 | D79: 0.7597 | E79: 0.0027 | F79: 15 | G79: 200 | H79: 1.65
B80: Disc and Drum | C80: 4.8123 | D80: 0.2858 | E80: 0.042 | F80: 0.9 | G80: 300 | H80: 1.65
B81: Gravity | C81: 4.2756 | D81: 0.352 | E81: 0.0714 | F81: 0.5 | G81: 80 | H81: 1.65
B82: Leaf | C82: 3.8187 | D82: 0.6235 | E82: 0.0176 | F82: 0.6 | G82: 235 | H82: 1.65
B83: Pan | C83: 4.8123 | D83: 0.2858 | E83: 0.042 | F83: 0.9 | G83: 300 | H83: 1.65
B84: Plate and Frame | C84: 4.2756 | D84: 0.352 | E84: 0.0714 | F84: 0.5 | G84: 80 | H84: 1.8
B85: Table | C85: 5.1055 | D85: 0.4999 | E85: 0.0001 | F85: 0.9 | G85: 115 | H85: 1.65
B86: Tube | C86: 5.1055 | D86: 0.4999 | E86: 0.0001 | F86: 0.9 | G86: 115 | H86: 1.54
B89: Fired Heater Data
L90: Bare Module Factor
B91: Reactive Heaters | C91: K1 | D91: K2 | E91: K3 | F91: Qmin(kW) | G91: Qmax(kW) | H91: Pmax(barg) | I91: C1 | J91: C2 | K91: C3 | L91: CS | M91: Alloy Steel | N91: SS
B92: Reformer Furnace | C92: 3.068 | D92: 0.6597 | E92: 0.0194 | F92: 3000 | G92: 100000 | H92: 200 | I92: 0.1405 | J92: -0.2698 | K92: 0.1293 | L92: 2.13 | M92: 2.51 | N92: 2.81
B93: Pyrolysis Furnace | C93: 2.3859 | D93: 0.9721 | E93: -0.0206 | F93: 3000 | G93: 100000 | H93: 200 | I93: 0.1017 | J93: -0.1957 | K93: 0.09403 | L93: 2.13 | M93: 2.51 | N93: 2.81
L95: Bare Module Factor
B96: Non-reactive Heaters | C96: K1 | D96: K2 | E96: K3 | F96: Qmin(kW) | G96: Qmax(kW) | H96: Pmax(barg) | I96: C1 | J96: C2 | K96: C3 | L96: CS | M96: Alloy Steel | N96: SS
B97: Process Heater | C97: 7.3488 | D97: -1.1666 | E97: 0.2028 | F97: 1000 | G97: 100000 | H97: 200 | I97: 0.1347 | J97: -0.2368 | K97: 0.1021 | L97: 2.13 | M97: 2.51 | N97: 2.81
M100: Steam Supreheat Factor
B101: Thermal Fluid Heaters | C101: K1 | D101: K2 | E101: K3 | F101: Qmin(kW) | G101: Qmax(kW) | H101: Pmax(barg) | I101: C1 | J101: C2 | K101: C3 | L101: Fbm | M101: FT1 | N101: FT2 | O101: FT3
B102: Hot Water | C102: 2.0829 | D102: 0.9074 | E102: -0.0243 | F102: 650 | G102: 10750 | H102: 200 | I102: -0.01633 | J102: 0.056875 | K102: -0.00876 | L102: 2.17
B103: Molten Salt, Mineral Oil, | C103: 1.1979 | D103: 1.4782 | E103: -0.0958 | F103: 650 | G103: 10750 | H103: 200 | I103: -0.01633 | J103: 0.056875 | K103: -0.00876 | L103: 2.17
B104: Diphenyl Based Oils | C104: 2.2628 | D104: 0.8581 | E104: 0.0003 | F104: 650 | G104: 10750 | H104: 200 | I104: -0.01633 | J104: 0.056875 | K104: -0.00876 | L104: 2.17
B105: Packaged Steam Boilers | C105: 6.9617 | D105: -1.48 | E105: 0.3161 | F105: 1200 | G105: 9400 | H105: 40 | I105: 2.594072 | J105: -4.23476 | K105: 1.722404 | L105: 2.17 | M105: 1 | N105: 0.00184 | O105: 3.35e-06
B108: Evaporator Data
B110: Evaporator Types | C110: K1 | D110: K2 | E110: K3 | F110: Amin(m2) | G110: Amax(m2) | H110: Pmax(barg) | I110: C1 | J110: C2 | K110: C3
B111: Forced Circulation | C111: 5.0238 | D111: 0.3475 | E111: 0.0703 | F111: 5 | G111: 1000 | H111: 150 | I111: 0.1578 | J111: -0.2992 | K111: 0.1413
B112: Falling Film | C112: 3.9119 | D112: 0.8627 | E112: -0.0088 | F112: 50 | G112: 500 | H112: 150 | I112: 0.1578 | J112: -0.2992 | K112: 0.1413
B113: Agitated (Scraped Wall) | C113: 5 | D113: 0.149 | E113: -0.0134 | F113: 0.5 | G113: 5 | H113: 150 | I113: 0.1578 | J113: -0.2992 | K113: 0.1413
B114: Short Tube | C114: 5.2366 | D114: -0.6572 | E114: 0.35 | F114: 10 | G114: 100 | H114: 150 | I114: 0.1578 | J114: -0.2992 | K114: 0.1413
B115: Long Tube | C115: 4.642 | D115: 0.3698 | E115: 0.0025 | F115: 100 | G115: 10000 | H115: 150 | I115: 0.1578 | J115: -0.2992 | K115: 0.1413
B118: Heat Exchanger Data
B119: Exchager Type | C119: K1 | D119: K2 | E119: K3 | F119: C1 | G119: C2 | H119: C3 | I119: B1 | J119: B2 | K119: Amin(m2) | L119: Amax(m2) | M119: Pmax(barg)
B120: Double Pipe | C120: 3.3444 | D120: 0.2745 | E120: -0.0472 | F120: 13.1467 | G120: -12.6574 | H120: 3.0705 | I120: 1.74 | J120: 1.55 | K120: 1 | L120: 10 | M120: 300
B121: 40 barg < P < 100 barg | F121: 0.6072 | G121: -0.912 | H121: 0.3327
B122: P < 40 barg | F122: 0 | G122: 0 | H122: 0
B123: Multiple Pipe | C123: 2.7652 | D123: 0.7282 | E123: 0.0783 | F123: 13.1467 | G123: -12.6574 | H123: 3.0705 | I123: 1.74 | J123: 1.55 | K123: 10 | L123: 100 | M123: 300
B124: 40 barg < P < 100 barg | F124: 0.6072 | G124: -0.912 | H124: 0.3327
B125: P < 40 barg | F125: 0 | G125: 0 | H125: 0
B126: Fixed tube, sheet, or U tube | C126: 4.3247 | D126: -0.303 | E126: 0.1634 | F126: 0.03881 | G126: -0.11272 | H126: 0.08183 | I126: 1.63 | J126: 1.66 | K126: 10 | L126: 1000 | M126: 140
B127: tubes only > 5 barg | F127: -0.00164 | G127: -0.00627 | H127: 0.0123
B128: Floating Head | C128: 4.8306 | D128: -0.8509 | E128: 0.3187 | F128: 0.03881 | G128: -0.11272 | H128: 0.08183 | I128: 1.63 | J128: 1.66 | K128: 10 | L128: 1000 | M128: 140
B129: tubes only > 5barg | F129: -0.00164 | G129: -0.00627 | H129: 0.0123
B130: Bayonet | C130: 4.2768 | D130: -0.0495 | E130: 0.1431 | F130: 0.03881 | G130: -0.11272 | H130: 0.08183 | I130: 1.63 | J130: 1.66 | K130: 10 | L130: 1000 | M130: 140
B131: tubes only > 5 barg | F131: -0.00164 | G131: -0.00627 | H131: 0.0123
B132: Kettle Reboiler | C132: 4.4646 | D132: -0.5277 | E132: 0.3955 | F132: 0.03881 | G132: -0.11272 | H132: 0.08183 | I132: 1.63 | J132: 1.66 | K132: 10 | L132: 100 | M132: 140
B133: tubes only > 5 barg | F133: -0.00164 | G133: -0.00627 | H133: 0.0123
B134: Scraped Wall | C134: 3.7803 | D134: 0.8569 | E134: 0.0349 | F134: 13.1467 | G134: -12.6574 | H134: 3.0705 | I134: 1.74 | J134: 1.55 | K134: 2 | L134: 20 | M134: 300
B135: 40 barg < P < 100 barg | F135: 0.6072 | G135: -0.912 | H135: 0.3327
B136: P < 40 barg | F136: 0 | G136: 0 | H136: 0
B137: Teflon Tube | C137: 3.8062 | D137: 0.8924 | E137: -0.1671 | F137: 0 | G137: 0 | H137: 0 | I137: 1.63 | J137: 1.66 | K137: 1 | L137: 10 | M137: 15
B138: Air Cooler | C138: 4.0336 | D138: 0.2341 | E138: 0.0497 | F138: -0.125 | G138: 0.15361 | H138: -0.02861 | I138: 0.96 | J138: 1.21 | K138: 10 | L138: 10000 | M138: 100
B139: Spiral Tube - shell and tube | C139: 3.9912 | D139: 0.0668 | E139: 0.243 | F139: -0.4045 | G139: 0.1859 | H139: 0 | I139: 1.74 | J139: 1.55 | K139: 1 | L139: 100 | M139: 400
B140: tube only | F140: -0.2115 | G140: 0.09717 | H140: 0
B141: Spiral Plate | C141: 4.6561 | D141: -0.2947 | E141: 0.2207 | F141: 0 | G141: 0 | H141: 0 | I141: 0.96 | J141: 1.21 | K141: 1 | L141: 100 | M141: 19
B142: Flat Plate | C142: 4.6656 | D142: -0.1557 | E142: 0.1547 | F142: 0 | G142: 0 | H142: 0 | I142: 0.96 | J142: 1.21 | K142: 10 | L142: 1000 | M142: 19
B144: Materail Factors, FM
C145: Shell - CS | D145: CS | E145: Cu | F145: CS | G145: SS | H145: CS | I145: Ni | J145: CS | K145: Ti
B146: Exchanger Type | C146: Tube - CS | D146: Cu | E146: Cu | F146: SS | G146: SS | H146: Ni | I146: Ni | J146: Ti | K146: Ti
B147: Double Pipe | C147: 1 | D147: 1.35 | E147: 1.69 | F147: 1.81 | G147: 2.73 | H147: 2.68 | I147: 3.73 | J147: 4.63 | K147: 11.38
B148: Multiple Pipe | C148: 1 | D148: 1.35 | E148: 1.69 | F148: 1.81 | G148: 2.73 | H148: 2.68 | I148: 3.73 | J148: 4.63 | K148: 11.38
B149: Fixed tube, sheet, or U tube | C149: 1 | D149: 1.35 | E149: 1.69 | F149: 1.81 | G149: 2.73 | H149: 2.68 | I149: 3.73 | J149: 4.63 | K149: 11.38
B150: Floating Head | C150: 1 | D150: 1.35 | E150: 1.69 | F150: 1.81 | G150: 2.73 | H150: 2.68 | I150: 3.73 | J150: 4.63 | K150: 11.38
B151: Bayonet | C151: 1 | D151: 1.35 | E151: 1.69 | F151: 1.81 | G151: 2.73 | H151: 2.68 | I151: 3.73 | J151: 4.63 | K151: 11.38
B152: Kettle Reboiler | C152: 1 | D152: 1.35 | E152: 1.69 | F152: 1.81 | G152: 2.73 | H152: 2.68 | I152: 3.73 | J152: 4.63 | K152: 11.38
B153: Scraped Wall | C153: 1 | D153: 1.35 | E153: 1.69 | F153: 1.81 | G153: 2.73 | H153: 2.68 | I153: 3.73 | J153: 4.63 | K153: 11.38
B154: Spiral Tube | C154: 1 | D154: 1.35 | E154: 1.69 | F154: 1.81 | G154: 2.73 | H154: 2.68 | I154: 3.73 | J154: 4.63 | K154: 11.38
C156: Shell Materail
B157: Exchanger Type | C157: CS | D157: Cu | E157: SS | F157: Ni | G157: Ti
B158: Teflon Tube Exchanger | C158: 1 | D158: 1.2 | E158: 1.3 | F158: 1.4 | G158: 3.3
C160: Material In Contact with Process Fluid
B161: Exchanger Type | C161: CS | D161: Cu | E161: SS | F161: Ni | G161: Ti
B162: Spiral Plate | C162: 1 | D162: 1.35 | E162: 2.45 | F162: 2.68 | G162: 4.63
B163: Flat Plate | C163: 1 | D163: 1.35 | E163: 2.45 | F163: 2.68 | G163: 4.63
C165: Tube Material
B166: Exchanger Type | C166: CS | D166: Al | E166: SS
B167: Air Cooler | C167: 1 | D167: 1.42 | E167: 2.93
B170: Mixer Data
B171: Mixer Type | C171: K1 | D171: K2 | E171: K3 | F171: Pmin(kW) | G171: Pmax(kW) | H171: FBM
B172: Impeller | C172: 3.8511 | D172: =1-0.2991 -> 0.7009 | E172: -0.0003 | F172: 5 | G172: 150 | H172: 1.38
B173: Propeller | C173: 4.3207 | D173: =1-0.9641 -> 0.0359 | E173: 0.1346 | F173: 5 | G173: 500 | H173: 1.38
B174: Turbine | C174: 3.4092 | D174: =1-0.5104 -> 0.4896 | E174: 0.003 | F174: 5 | G174: 150 | H174: 1.38
B177: Pump Data (including electric drives)
B178: Pump Type | C178: K1 | D178: K2 | E178: K3 | F178: C1 | G178: C2 | H178: C3 | I178: B1 | J178: B2 | K178: FmCI | L178: FmCS | M178: FmCu | N178: FmSS | O178: FmNi | P178: FmTi | Q178: Pmax(barg) | R178: Wmin(kW) | S178: Wmax(kW)
B179: Centrifugal pump | C179: 3.3892 | D179: 0.0536 | E179: 0.1538 | F179: -0.3935 | G179: 0.3957 | H179: -0.00226 | I179: 1.89 | J179: 1.35 | K179: 1 | L179: 1.55 | M179: NA | N179: 2.28 | O179: 4.36 | P179: NA | Q179: 100 | R179: 1 | S179: 300
B180: Positive Displacement | C180: 3.4771 | D180: 0.135 | E180: 0.1438 | F180: -0.245382 | G180: 0.259016 | H180: -0.01363 | I180: 1.89 | J180: 1.35 | K180: 1 | L180: 1.41 | M180: 1.28 | N180: 2.67 | O180: 4.74 | P180: 10.66 | Q180: 100 | R180: 1 | S180: 100
B181: Reciprocating pump | C181: 3.8696 | D181: 0.3161 | E181: 0.122 | F181: -0.245382 | G181: 0.259016 | H181: -0.01363 | I181: 1.89 | J181: 1.35 | K181: 1 | L181: 1.46 | M181: 1.28 | N181: 2.35 | O181: 3.95 | P181: 6.44 | Q181: 100 | R181: 0.1 | S181: 200
B184: Reactor Data
B185: Reactor Type | C185: K1 | D185: K2 | E185: K3 | F185: Vmin(m3) | G185: Vmax(m3) | H185: FBM
B186: Autoclave | C186: 4.5587 | D186: 0.2986 | E186: 0.002 | F186: 1 | G186: 15 | H186: 4
B187: Fermenter | C187: 4.1052 | D187: 0.532 | E187: -0.0005 | F187: 0.1 | G187: 35 | H187: 4
B188: Inoculum Tank | C188: 3.7957 | D188: 0.4593 | E188: 0.016 | F188: 0.07 | G188: 1 | H188: 4
B189: Jacketed Agitated | C189: 4.1052 | D189: 0.532 | E189: -0.0005 | F189: 0.1 | G189: 35 | H189: 4
B190: Jacketed Non-Agitated | C190: 3.3496 | D190: 0.7235 | E190: 0.0025 | F190: 5 | G190: 45 | H190: 4
B191: Mixer/Settler | C191: 4.7116 | D191: 0.4479 | E191: 0.0004 | F191: 0.04 | G191: 6 | H191: 4
B194: Screen Data
B195: Screen Type | C195: K1 | D195: K2 | E195: K3 | F195: Amin(m2) | G195: Amax(m2) | H195: FBM
B196: DSM | C196: 3.805 | D196: =1-0.4144 -> 0.5856 | E196: 0.212 | F196: 0.3 | G196: 6 | H196: 1.34
B197: Rotary | C197: 4.0485 | D197: =1-0.8882 -> 0.1118 | E197: 0.326 | F197: 0.3 | G197: 15 | H197: 1.34
B198: Stationary | C198: 3.8219 | D198: 1.0368 | E198: -0.605 | F198: 2 | G198: 11 | H198: 1.34
B199: Vibrating | C199: 4.0485 | D199: =1-0.8882 -> 0.1118 | E199: 0.326 | F199: 0.3 | G199: 15 | H199: 1.34
B202: Tank Data
B203: Tank Type | C203: K1 | D203: K2 | E203: K3 | F203: B1 | G203: B2 | H203: Vmin(m3/s) | I203: Vmax(m3/s)
B204: Fixed Roof | C204: 4.8509 | D204: -0.3973 | E204: 0.1445 | F204: 1.1 | G204: 0 | H204: 90 | I204: 30000
B205: Floating Roof | C205: 5.9567 | D205: -0.7585 | E205: 0.1749 | F205: 1.1 | G205: 0 | H205: 1000 | I205: 40000
B208: Turbine Data
B209: Turbine Type | C209: K1 | D209: K2 | E209: K3 | F209: FBMCI | G209: FBMCS | H209: FBMCu | I209: FBMSS | J209: FBMNi | K209: FBMTi | L209: Wmin(kW) | M209: Wmax(kW)
B210: Axial | C210: 2.7051 | D210: 1.4398 | E210: -0.1776 | F210: NA | G210: 3.5 | H210: NA | I210: 6.13 | J210: 11.66 | K210: NA | L210: 100 | M210: 4000
B211: Radial | C211: 2.2476 | D211: 1.4965 | E211: -0.1618 | F211: NA | G211: 3.5 | H211: NA | I211: 6.13 | J211: 11.66 | K211: NA | L211: 100 | M211: 1500
B213: Vaporizer Data
B215: Vaporizer Types | C215: K1 | D215: K2 | E215: K3 | F215: Vmin(m3) | G215: Vmax(m3) | H215: Pmax(barg) | I215: C1 | J215: C2 | K215: C3
B216: Jacketed Vessel | C216: 3.8751 | D216: 0.3328 | E216: 0.1901 | F216: 1 | G216: 100 | H216: 320 | I216: 0.1578 | J216: -0.2992 | K216: 0.1413
B217: Internal Coil | C217: 4.038 | D217: 0.09142 | E217: 0.2766 | F217: 1 | G217: 100 | H217: 320 | I217: 0.1578 | J217: -0.2992 | K217: 0.1413
B218: Jacketed Vessel w/ Coil | C218: 4.038 | D218: 0.09142 | E218: 0.2766 | F218: 1 | G218: 100 | H218: 320 | I218: 0.1578 | J218: -0.2992 | K218: 0.1413
D220: Bare Module Factors, FBM
B221: Vaporizer Types | C221: CS | D221: Cu | E221: GL SS Coils | F221: Glass Lined Ni Coils | G221: SS | H221: SS Clad | I221: Ni Alloy | J221: Ni Alloy Clad | K221: Ti | L221: Ti Clad
B222: Jacketed Vessel | C222: 2.74 | D222: 3.43 | E222: 4.66 | F222: 4.93 | G222: 4.8 | H222: 3.77 | I222: 9.12 | J222: 5.93 | K222: 13.7 | L222: 9.53
B223: Internal Coil | C223: 3.03 | D223: 3.79 | E223: 5.15 | F223: 5.45 | G223: 5.15 | H223: 4.09 | I223: 10.09 | J223: 6.56 | K223: 15.15 | L223: 10.61
B224: Jacketed Vessel w/ Coil | C224: 3.03 | D224: 3.79 | E224: 5.15 | F224: 5.45 | G224: 5.15 | H224: 4.09 | I224: 10.09 | J224: 6.56 | K224: 15.15 | L224: 10.61
B226: Evaporator Data
D227: Bare Module Factors, FBM
B228: Evaporator Types | C228: CS | D228: Cu Alloy | E228: SS | F228: Ni Alloy | G228: Ti
B229: Forced Circulation | C229: 2.9 | D229: 3.63 | E229: 5.08 | F229: 9.66 | G229: 14.5
B230: Falling Film | C230: 2.25 | D230: 2.81 | E230: 3.94 | F230: 7.49 | G230: 11.25
B231: Agitated (Scraped Wall) | C231: 2.25 | D231: 2.81 | E231: 3.94 | F231: 7.49 | G231: 11.25
B232: Short Tube | C232: 2.9 | D232: 3.63 | E232: 5.08 | F232: 9.66 | G232: 14.5
B233: Long Tube | C233: 2.9 | D233: 3.63 | E233: 5.08 | F233: 9.66 | G233: 14.5
B236: Vessel Data (including data for distillation towers and packed columns)
B237: Vertical Vessels | G237: Horizontal Vessels
B238: K1 | C238: K2 | D238: K3 | E238: Vmin | F238: Vmax | G238: K1 | H238: K2 | I238: K3 | J238: Vmin | K238: Vmax | L238: Pmax(barg)
B239: 3.4974 | C239: 0.4485 | D239: 0.1074 | E239: 0.3 | F239: 520 | G239: 3.5565 | H239: 0.3776 | I239: 0.0905 | J239: 0.1 | K239: 628 | L239: 400
B242: Vessel Type | C242: B1 | D242: B2
B243: Horizontal | C243: 1.49 | D243: 1.52
B244: Vertical | C244: 2.25 | D244: 1.82
B246: Materials of Construction
B247: FM CS | C247: 1
B248: FM SS clad | C248: 1.74
B249: FM SS | C249: 3.11
B250: FM Ni clad | C250: 3.62
B251: FM Ni | C251: 7.07
B252: FM Ti clad | C252: 4.68
B253: FM Ti | C253: 9.4
B255: Tower Trays
B256: Tray Type | C256: K1 | D256: K2 | E256: K3 | F256: Amin(m2) | G256: Amax(m2)
... 25 more rows

Sheet Cooling Water
B1: COST OF COOLING WATER
B2: User may change values to suit location and changing circumstances
B4: Cost of electrical power | C4: =costElectricity/1000000000*3600000 -> 0.067392 | D4: $/kWh
B5: Cost of Chemicals | C5: 3.47e-05 | D5: $/kg MU water
B6: Cost of water | C6: =0.177/1000 -> 0.000177 | D6: $/kg MU water
B8: Deisgn DT | C8: 10 | D8: °C
B9: Basis | C9: 1 | D9: GJ
B10: rwater | C10: 996 | D10: kg/m3
B11: m | C11: =1000000000/4180/C8 -> 23923.44498 | D11: kg/h
B12: l | C12: 2417 | D12: kJ/kg
B13: Wevap | C13: =C9*1000000000/C12/1000 -> 413.7360364 | D13: kg/h
B14: fevap | C14: =C13/C11 -> 0.01729416632
B15: Windage loss, fwind | C15: 0.003 | D15: Range = | E15: 0.001 to 0.003
B16: s, salt conc factor | C16: 5 | D16: Range = | E16: 3 to 7
B17: fBD | C17: =C14/(C16-1)-C15 -> 0.00132354158
B18: fMU | C18: =C14+C15+C17 -> 0.0216177079
B19: WMU | C19: =C18*C11 -> 517.1700455 | D19: kg/h
B20: DPloop | C20: 266.7 | D20: kPa
B21: pump efficiency | C21: 0.75
B22: Power for circ cw pump | C22: =1/C21*(C11/C10/3600)*C20 -> 2.372595112 | D22: kW
B24: SA of tower | C24: 0.5 | D24: ft2/gpm
B25: Fan hp | C25: =0.041 -> 0.041 | D25: hp/ft2-tower
B26: Power for Fan | C26: =C11*2.2048/60/8.337*0.5*0.041*0.746 -> 1.612592201 | D26: kW
B28: Cooling Water Cost | C28: =C4*(C22+C26)+C19*C5+C19*C6 -> 0.378054642 | D28: $/GJ
C29: =C28/C11*C10*1000 -> 15.7394733 | D29: $/1000m3
B31: indicates user option
B33: % electricity | C33: =(C26+C22)*C4/C28 -> 0.7103992744
B34: % MU chemical cost | C34: =C19*C5/C28 -> 0.04746880102
B35: % MU water cost | C35: =C19*C6/C28 -> 0.2421319245
C36: =SUM(C33:C35) -> 1

Sheet Cost of Refrigerated Water
A1: COST OF REFRIGERATED WATER
A2: User may change values to suit location and changing circumstances
A4: Cost of electrical power | B4: =costElectricity*3600000/1000000000 -> 0.067392 | C4: $/kWh
A5: Cost of CW | B5: =costCW -> 0.378 | C5: $/GJ
A7: Basis | B7: 1 | C7: GJ/h
A8: Refrigerant | B8: R-152a
A9: Compressor Efficiency | B9: 0.75
A10: Compressor Duty | B10: 63.8 | C10: kW
A11: Condenser Duty | B11: 1.23 | C11: GJ/h
A12: Evaporator duty | B12: 1 | C12: GJ/h
A14: Cost per GJ | B14: =B10*B4+B11*B5 -> 4.7645496 | C14: $/GJ

Sheet Cost of Steam
A1: User may change values to suit location and changing circumstances
A2: hbfw | B2: 482.6 | C2: kJ/kg | D2: saturated liquid at 115°C
A7: HP steam generated at 45.3 bar and 400°C | C7: (650 psig and 400°C)
A9: HP-Steam | H9: MP-Steam - with Power Generation (10 barg) | O9: LP-Steam - with Power Generation (6.2 barg)
A10: Natural gas cost | B10: =costNaturalGas -> 3.16 | C10: $/GJ | D10: 0.1119 | E10: $/std m3 | H10: Natural gas cost | I10: =B10 -> 3.16 | J10: $/GJ | O10: Natural gas cost | P10: =B10 -> 3.16 | Q10: $/GJ
A11: Process water cost | B11: 0.177 | C11: $/1000 kg | H11: Process water cost | I11: =B11 -> 0.177 | J11: $/1000 kg | O11: Process water cost | P11: =B11 -> 0.177 | Q11: $/1000 kg
A12: Chemicals to treat bfw | B12: 0.156 | C12: $/1000 kg | H12: Chemicals to treat bfw | I12: =B12 -> 0.156 | J12: $/1000 kg | O12: Chemicals to treat bfw | P12: =B12 -> 0.156 | Q12: $/1000 kg
A13: Electricity | B13: =costElectricity*0.0036 -> 0.067392 | C13: $/kWh | H13: Electricity | I13: =B13 -> 0.067392 | J13: $/kWh | O13: Electricity | P13: =B13 -> 0.067392 | Q13: $/kWh
A15: Basis | B15: 1000 | C15: kg of HP steam generated in boiler | H15: Basis | I15: 1000 | J15: kg of HP steam generated in boiler | O15: Basis | P15: 1000 | Q15: kg of HP steam generated in boiler
A16: Pgen | B16: 45.3 | C16: bar | H16: Pgen | I16: =B16 -> 45.3 | J16: bar | O16: Pgen | P16: =B16 -> 45.3 | Q16: bar
A17: Tgen | B17: 400 | C17: °C | H17: Tgen | I17: 400 | J17: °C | O17: Tgen | P17: =B17 -> 400 | Q17: °C
A18: hsteam | B18: 3205 | C18: kJ/kg | H18: hgen | I18: =B18 -> 3205 | J18: kJ/kg | O18: hgen | P18: =B18 -> 3205 | Q18: kJ/kg
A19: hsteam, sat | B19: =2799.9 -> 2799.9 | C19: kJ/kg | H19: sgen | I19: 6.7032 | J19: kJ/kg/K | O19: sgen | P19: 6.7032 | Q19: kJ/kg/K
A20: hcond,sat | B20: 1101.6 | C20: kJ/kg | H20: Conditions after rev adiabatic expansion | O20: Conditions after adiabatic expansion of 75% efficiency
A21: hbfw at 115C | B21: =B2 -> 482.6 | C21: kJ/kg | H21: hout | I21: 2851.9 | J21: kJ/kg | O21: hout | P21: =2854.8 -> 2854.8 | Q21: kJ/kg
A22: DH=mDh | B22: =(B18-B21)*1000/1000000 -> 2.7224 | C22: GJ | H22: -Wtheor | I22: =I18-I21 -> 353.1 | J22: kJ/kg | K22: =I22/3.6 -> 98.08333333 | L22: kWh | O22: -Wtheor | P22: =P18-P21 -> 350.2 | Q22: kJ/kg | R22: =P22/3.6 -> 97.27777778 | S22: kWh
A23: bfw to desuperheat | B23: =(B18-B21)/(B19-B21)*1000-1000 -> 174.8155181 | C23: kg | H23: efficiency of turbine | I23: 0.75
A24: total hp steam | B24: =1000+B23 -> 1174.815518 | C24: steam available at header after desuperheating | H24: actual work (-Wact) | I24: =K22*I23 -> 73.5625 | J24: kWh | O24: actual work (-Wact) | P24: =R22 -> 97.27777778 | Q24: kWh
A25: boiler efficiency | B25: 0.9 | H25: credit for electricty | I25: =I24*I13 -> 4.957524 | O25: credit for electricty | P25: =P24*P13 -> 6.555744
A26: cost of NG to produce steam | B26: =B22/B25*B10*(1000)/B24 -> 8.136297778 | C26: per 1000 kg steam at header | H26: hout (after expansion) | I26: =I18-0.75*I22 -> 2940.175 | J26: kJ/kg | O26: hout (after expansion) | P26: =P21 -> 2854.8 | Q26: kJ/kg
A27: Natural gas usage | B27: =B22/B25/B24*1000 -> 2.574777778 | C27: GJ per 1000 kg steam at header | H27: hsat vap,10 barg | I27: 2780.7 | J27: kJ/kg | O27: hsat vap,6.2 bar | P27: 2757.6 | Q27: kJ/kg
A28: natural gas usage | B28: =B27*B10/D10 -> 72.71043591 | C28: scm | H28: hsat liq,10 barg | I28: 781.2 | O28: hsat liq,6.2 bar | P28: 676.1
B29: =B28/22.4 -> 3.246001603 | C29: kmol | H29: hbfw | I29: =B21 -> 482.6 | J29: kJ/kg | O29: hbfw | P29: =I29 -> 482.6 | Q29: kJ/kg
A30: % excess air | B30: 0.03 | H30: steam produced after desuperheating | I30: =(I26-I29)*1000/(I27-I29) -> 1069.394282 | J30: kg | O30: steam produced after desuperheating | P30: =(P26-P29)*1000/(P27-P29) -> 1042.725275 | Q30: kg
A31: O2 | B31: =2*B29*(1+B30) -> 6.686763302 | C31: kmol | H31: cost of nat gas to produce 1000 kg of saturated MP steam | I31: =B22*1000*I10/B25/I30 -> 8.938376656 | O31: cost of nat gas to produce 1000 kg of saturated MP steam | P31: =B22*1000*B10/B25/P30 -> 9.166986857
A32: Air | B32: =B31/0.21 -> 31.84173001 | C32: kmol | H32: Cost of electricity for blower | I32: =B36*I31/B26 -> 1.150018492 | O32: Cost of electricity for blower | P32: =P31/B26*B36 -> 1.179431659
A33: blower efficiency | B33: 0.6 | D33: 55.92 | E33: MJ/h | F33: from process simulator (Chemcad) | H33: Total cost of sat'd MP steam | I33: =I31-I25+I32+I12+B41+B43 -> 5.562340269 | O33: Total cost of sat'd MP steam | P33: =P31-P25+P32+P12+B41+B43 -> 4.222143636
A34: Power for blower | B34: =D33*1000/3600 -> 15.53333333 | C34: kWh | H34: Energy released by condensation | I34: =1000*(I27-I28)/1000000 -> 1.9995 | J34: GJ | O34: Energy released by condensation | P34: =1000*(P27-P28)/1000000 -> 2.0815 | Q34: GJ
H35: Cost of MP steam in heat exchanger | I35: =I33/I34 -> 2.781865601 | J35: $/GJ | O35: Cost of MP steam in heat exchanger | P35: =P33/P34 -> 2.028413949 | Q35: $/GJ
A36: cost of electricty for blower | B36: =B34*B13 -> 1.0468224
A37: make-up water | B37: 0.1 | C37: of all steam | D37: (100 kg/1000kg steam) | H37: MP-Steam - without Power Generation (10 barg) | O37: LP-Steam - without Power Generation (6.2 barg)
A38: energy in bfw | B38: =1000*4.18*(115-25)*1000/1000000000 -> 0.3762 | C38: GJ/kg | H38: steam produced after desuperheating | I38: =1000*(I18-I29)/(I27-I29) -> 1184.630782 | J38: kg | O38: steam produced after desuperheating | P38: =1000*(P18-P29)/(P27-P29) -> 1196.659341 | Q38: kg
A39: value of energy in MU water | B39: =B38*B10 -> 1.188792 | H39: cost of natural gas | I39: =B22*1000*I10/B25/I38 -> 8.068884444 | J39: per 1000 kg of saturated MP steam | O39: cost of natural gas | P39: =B22*1000*P10/B25/P38 -> 7.987777778 | Q39: per 1000 kg of saturated MP steam
A40: bfw cost | B40: =B39+B11+B12 -> 1.521792 | C40: $/1000 kg of bfw (value given in Table 8.2) | H40: cost of electricity for blower | I40: =I39/B26*B36 -> 1.038148948 | O40: cost of electricity for blower | P40: =P39/B26*B36 -> 1.027713701
A41: make up water cost | B41: =B40*B37 -> 0.1521792 | C41: (cost for process water, to heat up water, and treatment chemicals)/1000 kg steam | H41: Total cost of sat'd MP steam | I41: =I39+I40+I12+B41+B43 -> 9.538502513 | J41: per 1000 kg of saturated MP steam | O41: Total cost of sat'd MP steam | P41: =P39+P40+P12+B41+B43 -> 9.446960599 | Q41: per 1000 kg of saturated MP steam
A42: work to pump bfw to 45.3 bar | B42: =6.586 -> 6.586 | C42: MJ/1000 kg | D42: =B42/3.6 -> 1.829444444 | E42: kWh | H42: Cost of MP steam in heat exchanger | I42: =I41/I34 -> 4.770443867 | J42: $/GJ | O42: Cost of MP steam in heat exchanger | P42: =P41/P34 -> 4.538534998 | Q42: $/GJ
A43: cost to pump bfw to 45.3 bar | B43: =D42*B13 -> 0.12328992
A44: Total cost for steam | B44: =B26+B34*B13+B12+B41+B43 -> 9.614589298 | C44: $/1000 kg of steam
A46: Energy obtained through condensation of 1000 kg of HP steam at Tsat | B46: =1000*(B19-B20)/1000000 -> 1.6983 | C46: GJ
A47: Cost of steam | B47: =B44/B46 -> 5.661302065 | C47: $/GJ
